[Event "35th Staufer-Open-A 2025"]
[Site "Schwaebisch Gmuend"]
[Date "2025.01.05"]
[Round "8.13"]
[White "Melestean, Maxim"]
[Black "Dolzhykova, Kateryna"]
[Result "1/2-1/2"]
[ECO "A45"]
[WhiteElo "1962"]
[BlackElo "2299"]
[Annotator "TA"]
[PlyCount "53"]
[EventDate "2024.11.24"]
[EventType "swiss"]
[EventCountry "GER"]
[SourceTitle "playchess.com"]
[Source "ChessBase"]
[SourceQuality "1"]
[TimeControl "40/6000+30:1200+30"]

{[%evp 11,53,23,29,8,77,63,84,54,79,77,111,120,117,119,153,54,89,89,261,239,310,242,193,100,114,61,67,13,51,12,15,12,31,12,12,8,28,8,78,90,112,98,125,122]} 1. d4 {[%emt 0:00:03]} Nf6 {[%emt 0:00:06]} 2. Bg5 {[%emt 0:00:06]} Ne4 {[%emt 0:01:18]} 3. h4 {[%emt 0:00:06]} c5 {[%emt 0:01:12]} 4. dxc5 {[%emt 0:00:06]} Qa5+ {[%emt 0:01:20]} 5. Nd2 {[%emt 0:00:08]} Nxg5 {[%emt 0:02:09]} 6. hxg5 {[%emt 0:00:02]} g6 {[%emt 0:01:04][%cal Oh7h5]} 7. c3 {[%emt 0:00:14]} Bg7 {[%emt 0:03:47]} (7... Qxc5 $11 8. Ne4 Qb6) 8. Nb3 $16 {[%emt 0:08:19]} Qc7 {[%emt 0:00:49]} 9. e3 {[%emt 0:12:47]} a5 {[%emt 0:03:23]} 10. a4 {[%emt 0:00:38]} Na6 {[%emt 0:06:25]} 11. Qd5 {[%emt 0:00:05]} Rb8 {[%emt 0:09:11]} 12. Bb5 {[%emt 0:00:19]} O-O {[%emt 0:02:02]} 13. Nf3 {[%emt 0:02:41] White has more active pieces.} (13. O-O-O $16) 13... b6 $1 $14 {[%emt 0:01:39]} 14. c6 {[%emt 0:01:08]} e6 $2 {[%emt 0:17:00] [#] Black is weak on the light squares} (14... dxc6 $16 15. Qxc6 Bb7) 15. Qc4 {[%emt 0:00:58]} Nc5 {[%emt 0:03:16]} 16. Nxc5 {[%emt 0:01:07]} bxc5 {[%emt 0:00:02]} 17. cxd7 {[%emt 0:05:57]} ({Resist} 17. Qxc5 $6 Bb7 $16) (17. Qh4 $18 {[%csl Gh1][%cal Rh4h7]} Rd8 18. O-O-O (18. Qxh7+ Kf8 $18)) 17... Bxd7 $16 {[%emt 0:00:22]} 18. Qh4 {[%emt 0:00:36]} (18. O-O-O $16 Bxb5 19. axb5) 18... Rfd8 $14 {[%emt 0:00:42]} 19. Qxh7+ {[%emt 0:02:17]} Kf8 {[%emt 0:00:03]} 20. O-O {[%emt 0:00:58][%cal Be1g1,Bg1h2,Bh2g3][%mdl 32]} Bxb5 {[%emt 0:01:55]} 21. axb5 {[%emt 0:00:02]} Rxb5 {[%emt 0:00:10]} 22. Qh2 $36 {[%emt 0:01:58][%mdl 2048] White has good play.} Qxh2+ {[%emt 0:05:12]} 23. Kxh2 {[%emt 0:00:01]} c4 {[%emt 0:07:12]} 24. Kg3 {[%emt 0:02:47]} Rd3 {[%emt 0:08:35]} (24... Rxb2 $11 {remains equal.} 25. Rxa5 Rc2) 25. Ra2 $16 {[%emt 0:00:38] White is better.} Ke7 {[%emt 0:02:04]} 26. Rfa1 {[%emt 0:05:29]} Rdd5 {[%emt 0:00:18]} 27. e4 {[%emt 0:03:52] Weighted Error Value: White=0.32/Black=0.30.  Loses game:     	---       	Black=1      Mistake:       	White=3     	Black=2      Inaccurate:     	White=2     	Black=2      OK:         	White=6     	Black=3      Best:        	White=1     	Black=1      Strong:       	---       	Black=1} 1/2-1/2

[Event "35th Staufer-Open-A 2025"]
[Site "Schwaebisch Gmuend"]
[Date "2025.01.05"]
[Round "8.14"]
[White "Skembris, Spyridon"]
[Black "Czaeczine, Anne"]
[Result "1-0"]
[ECO "A14"]
[WhiteElo "2264"]
[BlackElo "2173"]
[Annotator "TA"]
[PlyCount "105"]
[EventDate "2024.11.24"]
[EventType "swiss"]
[EventCountry "GER"]
[SourceTitle "playchess.com"]
[Source "ChessBase"]
[SourceQuality "1"]
[TimeControl "40/6000+30:1200+30"]

{[%evp 18,105,0,0,18,0,69,35,56,37,55,31,29,35,22,32,38,41,50,16,16,10,18,11,0,0,40,25,72,0,55,50,35,35,27,18,22,0,40,10,10,12,21,0,35,44,64,53,64,75,308,320,297,269,366,341,362,361,419,351,394,394,433,320,475,471,477,477,619,611,608,597,589,568,541,505,1299,1269,1092,543,5608,5608,5600,5600,29971,1102,29974,29974,6701,5614]} 1. c4 {[%emt 0:00:12]} Nf6 {[%emt 0:00:00]} 2. Nf3 {[%emt 0:00:34]} e6 {[%emt 0:00:00]} 3. g3 {[%emt 0:02:22]} d5 {[%emt 0:00:18]} 4. Bg2 {[%emt 0:00:22]} Be7 {[%emt 0:00:22]} 5. O-O {[%emt 0:00:27]} O-O {[%emt 0:00:19]} 6. b3 {[%emt 0:00:25]} d4 {[%emt 0:05:14]} 7. e3 {[%emt 0:08:25]} c5 {[%emt 0:01:31] A14: English Opening: 1...e6 with b3 by White.} 8. exd4 {[%emt 0:02:21] 8.Ne5 injects fresh life into this line.} cxd4 {[%emt 0:00:09]} 9. d3 {[%emt 0:00:47]} Nc6 {[%emt 0:01:10]} 10. Re1 {[%emt 0:00:58]} Bd6 {[%emt 0:12:03]} 11. a3 {[%emt 0:18:16]} Rb8 $146 {[%emt 0:04:48]} ({Black should play} 11... a5 $11) ({Predecessor:} 11... a5 12. Bg5 h6 13. Bxf6 Qxf6 14. Nbd2 Qe7 15. Qc1 e5 16. c5 Bxc5 17. Nc4 f6 {1-0 Jimenez Garcia,E (2410)-Terao,J (2242) American Continental 17th 2023 (3)}) 12. b4 $14 {[%emt 0:01:33]} b5 {[%emt 0:05:57]} 13. Nbd2 {[%emt 0:19:47]} a6 {[%emt 0:08:03]} 14. Bb2 {[%emt 0:18:44]} e5 {[%emt 0:01:32]} 15. Rc1 {[%emt 0:00:59]} Bb7 {[%emt 0:03:17]} 16. Ng5 {[%emt 0:06:04]} h6 {[%emt 0:28:56]} 17. Nge4 {[%emt 0:05:56]} Nxe4 {[%emt 0:00:13]} 18. Bxe4 {[%emt 0:00:29]} Ne7 {[%emt 0:03:09]} 19. Bxb7 {[%emt 0:01:57]} Rxb7 {[%emt 0:00:03]} 20. Qf3 {[%emt 0:00:31]} Rb8 {[%emt 0:01:27]} 21. Nb3 {[%emt 0:01:51]} Ng6 {[%emt 0:01:34]} 22. Na5 {[%emt 0:03:25]} Ne7 {[%emt 0:01:58] [#]} (22... Qd7 $11 {feels stronger.}) 23. Rc2 {[%emt 0:04:02]} ({Better is} 23. Nb7 $1 $16 {[%cal Rb7d8]} Qd7 24. Nxd6 Qxd6 25. Qe4) 23... Bc7 {[%emt 0:01:46]} (23... Qd7 $11) 24. Nb7 $14 {[%emt 0:00:49]} Qd7 {[%emt 0:05:25]} 25. Nc5 {[%emt 0:00:13]} Qd6 $1 {[%emt 0:00:22]} 26. Rec1 {[%emt 0:00:39]} Bd8 {[%emt 0:01:09]} 27. Re1 {[%emt 0:02:02]} Bc7 $1 {[%emt 0:04:26]} 28. h4 {[%emt 0:01:35]} a5 {[%emt 0:02:08]} 29. cxb5 {[%emt 0:01:49]} Rxb5 {[%emt 0:00:57]} 30. Rec1 {[%emt 0:00:26]} Nd5 {[%emt 0:02:00]} (30... axb4 $2 {too greedy.} 31. Ne4 Qa6 32. a4 $18 (32. Rxc7 bxa3 33. Ba1 Nd5 $14)) 31. Ne4 {[%emt 0:00:31]} Qd7 {[%emt 0:03:20]} 32. a4 {[%emt 0:01:11]} Rxb4 {[%emt 0:04:01]} 33. Ba3 {[%emt 0:00:01]} Nc3 $2 {[%emt 0:00:16]} (33... f5 $16 34. Nc5 Qf7) 34. Nxc3 $18 {[%emt 0:00:22]} dxc3 {[%emt 0:00:01]} 35. Rxc3 {[%emt 0:00:25]} Bd6 {[%emt 0:00:04]} 36. Bxb4 {[%emt 0:00:17]} Bxb4 {[%emt 0:00:04]} 37. Rc6 {[%emt 0:01:41]} Qd4 {[%emt 0:00:38]} 38. Qe4 {[%emt 0:00:27]} Qxe4 {[%emt 0:04:31]} 39. dxe4 {[%emt 0:00:04]} h5 {[%emt 0:03:27]} 40. Rc8 {[%emt 0:00:21]} Rxc8 {[%emt 0:00:10]} (40... g6 $142 41. Kg2 Rxc8 42. Rxc8+ Kg7) 41. Rxc8+ $18 {[%emt 0:20:05]} Kh7 {[%emt 0:20:04]} 42. Rc6 {[%emt 0:01:10]} f6 {[%emt 0:00:50]} 43. Kf1 {[%emt 0:00:34]} Kg6 {[%emt 0:00:24]} 44. Ke2 {[%emt 0:00:12]} Kf7 {[%emt 0:00:05]} 45. f4 {[%emt 0:00:38]} exf4 {[%emt 0:00:58]} 46. gxf4 {[%emt 0:00:11]} f5 {[%emt 0:00:00]} (46... g6 $142 47. Kf1 Bd2) 47. exf5 $18 {[%emt 0:00:00]} Be7 {[%emt 0:00:00]} 48. Ra6 {[%emt 0:00:00]} (48. Rc7 $142 {Black must now prevent Ra7.} Kf6 49. Rb7) 48... Bd8 {[%emt 0:00:00]} 49. Kf3 {[%emt 0:00:00]} Ke7 {[%emt 0:00:00]} 50. Ke4 {[%emt 0:00:00]} Kf7 {[%emt 0:00:00]} 51. Ra8 {[%emt 0:00:00]} (51. Ra7+ $142 Kf6 52. Ra8 Ke7 53. f6+ gxf6 54. Kf5 Bb6 55. Kg6 Kd7 56. Kxf6 (56. Kxh5 Bf2 $18)) 51... Ke7 {[%emt 0:00:00]} 52. f6+ {[%emt 0:00:00]} gxf6 {[%emt 0:00:00]} 53. Kf5 {[%emt 0:00:00]} 1-0

[Event "35th Staufer-Open-A 2025"]
[Site "Schwaebisch Gmuend"]
[Date "2025.01.05"]
[Round "8.15"]
[White "Meissner, Felix"]
[Black "Schuffenhauer, Robert"]
[Result "1-0"]
[ECO "B30"]
[WhiteElo "2372"]
[BlackElo "2017"]
[Annotator "TA"]
[PlyCount "55"]
[EventDate "2024.11.24"]
[EventType "swiss"]
[EventCountry "GER"]
[SourceTitle "playchess.com"]
[Source "ChessBase"]
[SourceQuality "1"]
[TimeControl "40/6000+30:1200+30"]

{[%evp 9,55,25,22,25,45,45,35,35,36,35,66,25,50,51,52,55,62,46,86,85,129,125,118,59,73,59,91,100,138,134,364,415,377,381,855,879,843,838,29987,747,29982,29984,29983,29984,29984,29985,29983,3997]} 1. e4 {[%emt 0:11:47]} c5 {[%emt 0:00:06]} 2. Nf3 {[%emt 0:00:20]} Nc6 {[%emt 0:00:06]} 3. Bb5 {[%emt 0:00:04]} Nf6 {[%emt 0:00:05]} 4. Bxc6 {[%emt 0:00:08]} dxc6 {[%emt 0:00:14]} 5. d3 {[%emt 0:00:18]} Bg4 {[%emt 0:00:06]} 6. Nbd2 {[%emt 0:00:29]} g6 {[%emt 0:03:40]} 7. h3 {[%emt 0:00:29]} Bxf3 {[%emt 0:00:17]} 8. Nxf3 {[%emt 0:02:57]} Bg7 {[%emt 0:08:35]} 9. O-O {[%emt 0:01:22]} Qc7 {[%emt 0:00:53]} 10. Re1 {[%emt 0:00:20]} e6 {[%emt 0:02:31]} 11. e5 {[%emt 0:06:32]} Nd5 {[%emt 0:05:41]} 12. Qe2 {[%emt 0:04:19]} h6 {[%emt 0:03:59]} 13. Qe4 {[%emt 0:01:32]} O-O-O {[%emt 0:02:34]} 14. a3 {[%emt 0:02:28]} Rhe8 {[%emt 0:19:52]} 15. c4 {[%emt 0:02:02]} Nb6 {[%emt 0:03:11]} 16. Bf4 {[%emt 0:04:16]} (16. b4 $16) 16... g5 $14 {[%emt 0:14:07]} 17. Bg3 {[%emt 0:00:27]} Qe7 {[%emt 0:00:29] [#]} 18. b4 $1 {[%emt 0:01:37]} cxb4 {[%emt 0:06:12]} (18... Na4 19. Qe2) 19. axb4 {[%emt 0:00:42]} Qxb4 $2 {[%emt 0:00:55] [#]} (19... Qd7 $16) 20. Reb1 $1 $18 {[%emt 0:01:10]} (20. Rxa7 Bf8 21. Rc1 Qb2 $18) 20... Qc5 {[%emt 0:00:17]} 21. Rxa7 {[%emt 0:01:32]} Kc7 $2 {[%emt 0:01:57] [#]} (21... Kb8) 22. Rb5 $3 {[%emt 0:04:15][%mdl 512]} Qe7 {[%emt 0:04:53] [#]} 23. c5 $1 {[%emt 0:01:09][%cal Bc4c5,Bc5c6][%mdl 32]} Kb8 {[%emt 0:00:08][%cal Bc7b8,Bb8b7,Bb7c8,Bc8d7][%mdl 32] [#]} (23... Rb8 24. cxb6+) 24. Rxb7+ {[%emt 0:00:22]} Kxb7 {[%emt 0:04:52]} 25. Rxb6+ {[%emt 0:00:07]} Kc8 {[%emt 0:00:09]} 26. Qxc6+ {[%emt 0:02:25]} Qc7 {[%emt 0:00:09] Black is weak on the light squares} 27. Qa8+ {[%emt 0:00:11]} Kd7 {[%emt 0:00:05]} 28. c6+ {[%emt 0:00:15]} 1-0

[Event "35th Staufer-Open-A 2025"]
[Site "Schwaebisch Gmuend"]
[Date "2025.01.05"]
[Round "8.16"]
[White "Latzke, Boris"]
[Black "Riehle, Marco"]
[Result "0-1"]
[ECO "D42"]
[WhiteElo "2197"]
[BlackElo "2388"]
[Annotator "TA"]
[PlyCount "104"]
[EventDate "2024.11.24"]
[EventType "swiss"]
[EventCountry "GER"]
[SourceTitle "playchess.com"]
[Source "ChessBase"]
[SourceQuality "1"]
[TimeControl "40/6000+30:1200+30"]

{[%evp 22,104,-24,-28,-24,-17,-28,-23,-4,-16,-3,0,-2,-31,-16,-15,-17,-27,-10,-22,-16,-32,0,-39,-43,-32,-8,-23,0,-118,-122,-121,-121,-114,-81,-92,-74,-78,-83,-70,-62,-77,-77,-116,-116,-100,-99,-182,-190,-192,-188,-228,-223,-256,-197,-228,-224,-239,-256,-353,-237,-218,-215,-214,-222,-209,-205,-239,-237,-227,-235,-222,-218,-267,-256,-365,-370,-881,-886,-845,-551,-560,-554,-553,-535]} 1. d4 {[%emt 0:00:02]} d5 {[%emt 0:00:03]} 2. c4 {[%emt 0:00:12]} e6 {[%emt 0:00:03]} 3. Nc3 {[%emt 0:00:13]} c5 {[%emt 0:00:02]} 4. e3 {[%emt 0:01:12]} cxd4 {[%emt 0:00:16]} 5. exd4 {[%emt 0:00:10]} Nf6 {[%emt 0:00:05]} 6. Nf3 {[%emt 0:00:59]} Be7 {[%emt 0:00:39]} 7. cxd5 {[%emt 0:02:54]} Nxd5 {[%emt 0:00:04]} 8. Bd3 {[%emt 0:00:20]} O-O {[%emt 0:00:47]} 9. O-O {[%emt 0:01:00]} Nc6 {[%emt 0:00:07]} 10. a3 {[%emt 0:01:50]} Bf6 {[%emt 0:07:12]} 11. Bc2 {[%emt 0:03:53]} Nxc3 {[%emt 0:10:14]} 12. bxc3 {[%emt 0:00:41]} b6 {[%emt 0:01:47]} 13. Qd3 {[%emt 0:03:37][%csl Gc2][%cal Rd3h7]} g6 {[%emt 0:01:41]} 14. Bh6 {[%emt 0:08:00]} Re8 {[%emt 0:04:22]} 15. Rfe1 {[%emt 0:02:51]} Bb7 {[%emt 0:04:43]} 16. Rad1 {[%emt 0:06:16]} Ne7 {[%emt 0:05:36]} 17. Ne5 {[%emt 0:13:51]} Nf5 {[%emt 0:04:55]} 18. Bf4 {[%emt 0:18:11]} Rc8 {[%emt 0:05:18]} 19. Bb3 {[%emt 0:07:13]} Bg7 {[%emt 0:06:07]} 20. f3 {[%emt 0:06:11]} Bd5 {[%emt 0:11:49]} 21. Ba4 {[%emt 0:03:50]} Re7 {[%emt 0:01:27]} 22. Bb5 {[%emt 0:06:15]} Bb7 {[%emt 0:05:22]} 23. Ng4 {[%emt 0:03:39]} Qd5 {[%emt 0:03:00]} 24. Be5 {[%emt 0:04:31]} Qb3 {[%emt 0:03:38]} (24... Bxe5 $5 25. Rxe5 Qb3 $17) 25. c4 {[%emt 0:02:26]} (25. Qe2 $11 {keeps the balance.} Qxc3 (25... Qxa3 26. Bxg7 Nxg7 27. Nf6+ Kh8 28. Qd2 $16) 26. Bxg7 Nxg7 (26... Kxg7 $2 27. Qe5+ f6 28. Nxf6 $18) 27. Nf6+ Kh8 28. Qe5) 25... Qxd3 $17 {[%emt 0:02:45]} 26. Rxd3 {[%emt 0:00:08]} a6 {[%emt 0:00:01]} 27. Ba4 {[%emt 0:02:08]} Rxc4 {[%emt 0:00:09]} 28. Bb3 {[%emt 0:00:39]} Rc8 {[%emt 0:00:02]} 29. Nf6+ {[%emt 0:01:42]} Bxf6 {[%emt 0:02:53]} 30. Bxf6 {[%emt 0:00:08][%cal Og2g4] aiming for g4!.} Rd7 {[%emt 0:00:21]} 31. g4 {[%emt 0:02:30]} Ng7 $36 {[%emt 0:04:27][%mdl 2048] Black has strong initiative.} 32. h4 {[%emt 0:06:01]} Ne8 {[%emt 0:01:19]} 33. Be5 {[%emt 0:00:09]} Bd5 {[%emt 0:00:25]} 34. h5 {[%emt 0:00:41]} (34. Rb1 $17) 34... gxh5 $19 {[%emt 0:03:14]} 35. gxh5 {[%emt 0:00:47]} f6 {[%emt 0:00:06]} 36. Bf4 {[%emt 0:00:38]} Kf7 {[%emt 0:03:09]} 37. Kf2 {[%emt 0:00:52]} b5 {[%emt 0:00:37]} 38. Bd1 {[%emt 0:01:45]} Ng7 {[%emt 0:12:53]} 39. Be3 {[%emt 0:00:45]} Nf5 {[%emt 0:00:31]} ({But not} 39... Nxh5 40. Rh1 Ng7 41. Rxh7) 40. f4 {[%emt 0:00:36]} Rdc7 {[%emt 0:01:34]} 41. Bd2 {[%emt 0:20:21]} Rg8 {[%emt 0:07:18]} 42. Rg1 {[%emt 0:00:00] Prevents Rg2+.} Rxg1 {[%emt 0:00:25]} 43. Kxg1 {[%emt 0:00:00]} Rc8 {[%emt 0:00:03] And now ...Rg8+ would win.} 44. Bb4 {[%emt 0:00:00]} Rg8+ {[%emt 0:00:27]} 45. Kf2 {[%emt 0:00:00]} Rg2+ {[%emt 0:00:53]} 46. Ke1 {[%emt 0:00:00]} Bc4 {[%emt 0:00:41]} 47. Rh3 {[%emt 0:00:00]} Nxd4 {[%emt 0:00:56]} 48. h6 {[%emt 0:00:00]} (48. Bc3 {was necessary.} Ne2 49. Bxe2 Bxe2 (49... Rxe2+ $2 50. Kd1 $19) 50. Bd4) 48... Be2 {[%emt 0:02:13]} 49. Bc5 $2 {[%emt 0:00:00]} (49. Bxe2 Rxe2+ 50. Kd1) 49... Rg1+ {[%emt 0:01:31]} 50. Kf2 {[%emt 0:00:00]} Rxd1 {[%emt 0:00:06]} 51. Bxd4 {[%emt 0:00:00]} Rxd4 {[%emt 0:00:02]} 52. Kxe2 {[%emt 0:00:00]} Kg6 {[%emt 0:00:15]} 0-1

[Event "35th Staufer-Open-A 2025"]
[Site "Schwaebisch Gmuend"]
[Date "2025.01.05"]
[Round "8.17"]
[White "Zeller, Frank"]
[Black "Luebke, Florentin"]
[Result "1/2-1/2"]
[ECO "D90"]
[WhiteElo "2325"]
[BlackElo "2146"]
[Annotator "TA"]
[PlyCount "136"]
[EventDate "2024.11.24"]
[EventType "swiss"]
[EventCountry "GER"]
[SourceTitle "playchess.com"]
[Source "ChessBase"]
[SourceQuality "1"]
[TimeControl "40/6000+30:1200+30"]

{[%evp 34,136,198,162,299,311,303,319,312,289,277,100,232,186,162,181,199,205,214,214,213,150,169,170,159,47,47,0,0,0,8,0,0,0,0,0,0,0,0,0,0,0,0,0,0,0,0,0,0,0,0,0,0,0,0,0,0,0,0,0,0,0,0,0,0,0,0,0,0,0,0,0,0,0,0,0,0,0,0,0,0,0,0,0,0,0,0,0,0,0,0,0,0,0,0,0,0,0,0,0,0,0,0,0,0]} 1. d4 {[%emt 0:01:23]} Nf6 {[%emt 0:01:48]} 2. c4 {[%emt 0:00:33]} g6 {[%emt 0:00:22]} 3. Nc3 {[%emt 0:00:42]} d5 {[%emt 0:00:21]} 4. Nf3 {[%emt 0:01:22]} Bg7 {[%emt 0:00:21]} 5. h4 {[%emt 0:03:34]} c6 {[%emt 0:06:46]} 6. cxd5 {[%emt 0:06:02]} cxd5 {[%emt 0:00:39]} 7. Bf4 {[%emt 0:00:16]} Ne4 {[%emt 0:05:10]} 8. Rc1 {[%emt 0:05:39]} Nc6 {[%emt 0:09:55]} 9. e3 {[%emt 0:00:54]} Bg4 {[%emt 0:04:43]} 10. Qb3 {[%emt 0:02:43]} Nxc3 {[%emt 0:18:06]} 11. Rxc3 {[%emt 0:06:49]} Qd7 {[%emt 0:02:25]} 12. Bb5 {[%emt 0:09:38]} Bxf3 {[%emt 0:02:05]} 13. gxf3 {[%emt 0:00:22]} O-O {[%emt 0:03:59]} 14. O-O {[%emt 0:14:14]} h6 {[%emt 0:13:58]} 15. Rfc1 {[%emt 0:03:09]} Rac8 {[%emt 0:03:10]} 16. Kg2 {[%emt 0:04:26]} Kh7 {[%emt 0:08:55]} 17. Qc2 {[%emt 0:03:45]} Bf6 {[%emt 0:02:37]} 18. Bg3 {[%emt 0:01:02]} Rg8 {[%emt 0:01:16]} (18... a5 {was necessary.} 19. Bxc6 Rxc6 20. Rxc6 bxc6) 19. Bxc6 $18 {[%emt 0:00:39]} bxc6 {[%emt 0:00:07]} 20. Rxc6 {[%emt 0:00:04]} Rxc6 {[%emt 0:00:40]} 21. Qxc6 {[%emt 0:00:02]} Qf5 {[%emt 0:02:01]} 22. e4 $2 {[%emt 0:27:27]} (22. Rc5 $18) 22... Qh5 {[%emt 0:00:53]} (22... dxe4 $16 23. fxe4 Qh5) 23. Qxd5 {[%emt 0:00:21]} (23. exd5 $6 Bxd4 24. b4 g5 25. Qc2+ Qg6) 23... Qxd5 {[%emt 0:01:19]} 24. exd5 {[%emt 0:00:02]} Bxd4 {[%emt 0:04:59] [#]} 25. Rc7 $1 {[%emt 0:00:11]} Re8 {[%emt 0:00:48]} 26. b4 {[%emt 0:03:37]} Kg7 {[%emt 0:01:27]} 27. Bf4 {[%emt 0:04:52]} e5 {[%emt 0:10:57]} 28. Be3 {[%emt 0:03:21]} Rd8 {[%emt 0:03:18]} 29. f4 {[%emt 0:05:43]} ({Don't play} 29. Bxd4 $6 exd4 30. Kf1 (30. Rxa7 $2 d3 $19) 30... a5 $14) (29. b5 $16) 29... Rxd5 $14 {[%emt 0:01:03]} 30. Kf3 {[%emt 0:00:01]} (30. fxe5 $14 Bxe3 31. fxe3 Rxe5 32. Rxa7) 30... exf4 $11 {[%emt 0:00:37]} 31. Kxf4 {[%emt 0:01:35]} Bxe3+ {[%emt 0:00:39]} 32. fxe3 {[%emt 0:01:06]} Rb5 {[%emt 0:00:32]} 33. a3 {[%emt 0:00:06]} a5 {[%emt 0:00:15]} 34. Rc5 {[%emt 0:00:05]} Rxc5 {[%emt 0:00:28]} 35. bxc5 {[%emt 0:00:01]} Kf6 {[%emt 0:00:17]} 36. c6 {[%emt 0:02:08]} Ke6 {[%emt 0:00:08]} 37. c7 $1 {[%emt 0:00:06]} Kd7 {[%emt 0:00:06]} 38. Ke5 {[%emt 0:00:02]} g5 {[%emt 0:01:15]} 39. hxg5 {[%emt 0:01:04]} hxg5 {[%emt 0:00:07]} 40. Kf5 {[%emt 0:00:32]} f6 {[%emt 0:01:11]} 41. e4 {[%emt 0:02:02]} (41. Kxf6 $5 g4 $8 42. e4 $11) 41... Kxc7 {[%emt 0:01:53]} 42. Kxf6 {[%emt 0:04:48]} g4 {[%emt 0:00:24]} 43. e5 {[%emt 0:00:04]} g3 {[%emt 0:00:08]} 44. e6 $1 {[%emt 0:00:06]} g2 {[%emt 0:00:05]} (44... Kd8 $5 45. Kf7 $8 g2 $11) 45. e7 {[%emt 0:00:02]} g1=Q {[%emt 0:00:16]} (45... g1=R $2 46. e8=Q (46. e8=B $2 {perishes.} Rf1+ 47. Kg7 Re1 $19) 46... Rf1+ 47. Kg5 $18) (45... Kd7 $5 46. Kf7 $8 g1=Q 47. e8=Q+ (47. e8=B+ $2 Kd8 $19) 47... Kc7 $11) 46. e8=Q {[%emt 0:00:07]} Qf2+ {[%emt 0:01:32]} 47. Kg7 {[%emt 0:04:42]} Qb2+ {[%emt 0:01:12]} 48. Kh7 {[%emt 0:00:30]} Qxa3 {[%emt 0:00:34]} 49. Qe5+ {[%emt 0:02:08]} Kc6 {[%emt 0:00:29]} 50. Qe8+ {[%emt 0:01:16]} Kd5 {[%emt 0:00:33]} 51. Qf7+ {[%emt 0:00:35]} Kd4 {[%emt 0:00:19]} 52. Qf6+ {[%emt 0:02:11]} Kc4 {[%emt 0:00:11]} 53. Qe6+ {[%emt 0:01:06]} Kb4 {[%emt 0:01:20]} 54. Qe4+ {[%emt 0:00:45]} Kb3 {[%emt 0:01:25]} 55. Qd3+ {[%emt 0:00:19]} Kb4 {[%emt 0:05:32]} 56. Qd6+ {[%emt 0:00:18]} Ka4 {[%emt 0:00:14]} 57. Qd7+ {[%emt 0:00:09]} Kb3 {[%emt 0:00:16]} 58. Qd3+ {[%emt 0:00:07]} Kb2 {[%emt 0:00:20]} 59. Qd2+ {[%emt 0:00:05]} Kb1 {[%emt 0:00:50]} 60. Qd1+ {[%emt 0:01:41]} Qc1 {[%emt 0:03:30]} 61. Qb3+ {[%emt 0:00:30]} Qb2 {[%emt 0:00:09]} 62. Qd1+ $1 {[%emt 0:00:03]} Ka2 {[%emt 0:00:07]} 63. Qa4+ {[%emt 0:00:03]} Qa3 {[%emt 0:00:13]} 64. Qc2+ {[%emt 0:00:07]} Ka1 {[%emt 0:00:06]} 65. Qd1+ {[%emt 0:00:06]} Kb2 {[%emt 0:00:06]} 66. Qd2+ {[%emt 0:00:05]} Kb1 {[%emt 0:00:12]} 67. Qd1+ {[%emt 0:00:08]} Qc1 {[%emt 0:00:07]} 68. Qb3+ {[%emt 0:00:05]} Qb2 {[%emt 0:01:08]} 1/2-1/2